bitfinex/quotes_SOLUSD_20250930
["timestamp","ask_amount","ask_price","bid_price","bid_amount"]
[1759210801438,1.91429038,210.12,210.1,56.88]
[1759210801641,1.91429038,210.11,210.1,56.18]
[1759210802348,2.99563867,210.11,210.1,56.88]
[1759210803851,0.71,210.14,210.1,56.88]
[1759210804047,2.99563867,210.11,210.1,56.88]
[1759210805153,2.99563867,210.11,210.1,61.63963826]
[1759210805341,2.99563867,210.12,210.1,61.63963826]
[1759210805651,0.71,210.14,210.1,60.93963826]
[1759210805851,2.99563867,210.11,210.1,56.18]
[1759210806750,2.99563867,210.11,210.1,56.88]
[1759210808957,2.99563867,210.11,210.1,61.63963826]
[1759210809661,2.99563867,210.13,210.1,61.63963826]
[1759210810156,4.75782722,210.18,210.1,61.63963826]
[1759210810457,2.99563867,210.13,210.11,0.7]
[1759210810646,0.71,210.16,210.12,33.28]
[1759210810956,2.99563867,210.13,210.12,33.28]
[1759210814161,2.99563867,210.13,210.12,38.03918522]
[1759210814540,2.99563867,210.13,210.12,33.28]
[1759210814943,2.99563867,210.13,210.12,56.18]
[1759210815951,0.71,210.16,210.12,60.93918522]
[1759210816150,2.99563867,210.13,210.12,60.93918522]
[1759210816845,2.99563867,210.13,210.12,61.65918522]
[1759210817543,2.99563867,210.14,210.12,61.65918522]
[1759210817743,2.99563867,210.14,210.13,0.72]
[1759210818068,0.7,210.19,210.13,5.4787418]
[1759210818364,2.99563867,210.15,210.14,33.28]
[1759210820353,2.99563867,210.15,210.13,22.9]
[1759210820354,8.45414449,210.15,210.13,22.9]
[1759210820555,3.69563867,210.14,210.13,22.9]
[1759210820758,3.69563867,210.14,210.1,56.18]
[1759210821062,2.99563867,210.12,210.1,56.18]
[1759210821258,2.99563867,210.13,210.11,0.72]
[1759210821971,2.99563867,210.15,210.12,0.68]
[1759210822170,2.99563867,210.15,210.12,33.96]
[1759210823269,11.89383247,210.2,210.13,0.68]
[1759210823270,2.99563867,210.16,210.13,0.68]
[1759210823679,2.99563867,210.16,210.14,0.68]
[1759210823981,2.99563867,210.16,210.14,23.58]
[1759210824862,2.99563867,210.16,210.14,22.9]
[1759210825382,0.7,210.18,210.14,27.65871695]
[1759210825583,0.7,210.23,210.15,0.68]
[1759210825881,0.7,210.27,210.16,46.87559401]
[1759210826084,2.99563867,210.25,210.17,0.68]
[1759210826382,2.99563867,210.24,210.18,33.28]
[1759210826567,2.99563867,210.23,210.19,0.68]
[1759210826884,2.99563867,210.23,210.2,33.28]
[1759210827084,2.99563867,210.23,210.21,0.68]
[1759210830588,2.99563867,210.23,210.22,0.68]
[1759210831071,2.99563867,210.24,210.22,0.68]
[1759210831682,2.99563867,210.24,210.2,60.93735098]
[1759210831973,2.99563867,210.24,210.21,0.68]
[1759210832991,2.99563867,210.24,210.22,0.68]
[1759210833366,2.99563867,210.23,210.2,27.65732629]
[1759210833571,2.99563867,210.21,210.2,22.9]
[1759210835687,7.75278628,210.21,210.17,0.68]
[1759210835873,2.99563867,210.19,210.17,0.68]
[1759210836695,2.99563867,210.19,210.16,22.9]
[1759210836998,2.99563867,210.19,210.18,0.68]
[1759210838799,5.45685701,210.23,210.18,0.68]
[1759210839095,2.99563867,210.2,210.17,4.75805269]
[1759210839596,2.99563867,210.2,210.18,0.68]
[1759210840875,2.99563867,210.2,210.19,0.68]
[1759210841077,2.99563867,210.22,210.19,0.68]
[1759210841793,2.99563867,210.22,210.18,38.01775684]
[1759210841992,2.99563867,210.22,210.19,0.68]
[1759210842594,2.99563867,210.22,210.19,5.43739307]
[1759210845414,2.99563867,210.22,210.2,0.68]
[1759210847312,2.99563867,210.22,210.18,60.91780411]
[1759210847505,2.99563867,210.22,210.19,0.68]
[1759210847683,2.99563867,210.22,210.18,60.91780411]
[1759210847889,2.99563867,210.19,210.18,22.9]
[1759210848103,3.69563867,210.19,210.14,0.68]
[1759210848312,2.99563867,210.15,210.13,4.75874589]
[1759210848609,2.99563867,210.21,210.14,0.68]
[1759210848610,2.99563867,210.16,210.14,0.68]
[1759210848813,2.99563867,210.16,210.13,4.75874589]
[1759210848814,2.99563867,210.16,210.15,0.68]
[1759210850822,2.99563867,210.16,210.15,5.43850582]
[1759210852531,2.99563867,210.16,210.15,0.68]
[1759210853134,5.46757391,210.2,210.15,0.68]
[1759210853319,2.99563867,210.16,210.15,4.75849508]
[1759210853518,2.99563867,210.17,210.15,5.46849508]
[1759210853724,2.99563867,210.17,210.16,0.71]
[1759210855018,5.46716873,210.21,210.16,0.71]
[1759210855229,0.71,210.21,210.13,11.89739684]
[1759210855415,2.99563867,210.17,210.13,11.89739684]
[1759210856028,2.99563867,210.17,210.14,0.71]
[1759210856427,2.99563867,210.17,210.13,16.65635557]
[1759210856623,2.99563867,210.17,210.15,0.71]
[1759210857032,2.99563867,210.17,210.13,39.55635557]
[1759210857241,2.99563867,210.17,210.16,0.71]
[1759210858435,2.99563867,210.17,210.16,5.4682794]
[1759210859234,2.99563867,210.18,210.16,5.4682794]
[1759210859443,2.99563867,210.18,210.17,0.71]
[1759210859937,0.71,210.24,210.17,0.71]
[1759210860239,2.99563867,210.2,210.17,0.71]
[1759210860435,2.99563867,210.19,210.15,33.26]
[1759210860636,2.99563867,210.18,210.16,0.71]
[1759210861339,2.99563867,210.18,210.17,0.71]
[1759210861517,2.99563867,210.18,210.15,33.97]
[1759210861718,2.99563867,210.16,210.15,33.26]
[1759210862338,1.91631583,210.16,210.15,33.26]
[1759210862541,1.91631583,210.16,210.15,56.16]
[1759210862929,1.91631583,210.17,210.15,61.62850582]
[1759210864447,0.71,210.21,210.15,60.91850582]
[1759210864649,1.91631583,210.21,210.16,0.71]
[1759210865946,1.91631583,210.22,210.17,4.758053]
[1759210866146,1.91631583,210.22,210.18,0.71]
[1759210866723,1.91631583,210.22,210.18,33.26]
[1759210866931,1.91631583,210.22,210.19,0.71]
[1759210867133,1.91631583,210.24,210.2,0.71]
[1759210867451,1.91631583,210.24,210.21,0.71]
[1759210867645,5.46536033,210.29,210.21,23.61]
[1759210867948,1.91631583,210.24,210.22,5.46692132]
[1759210868129,1.91631583,210.24,210.22,27.65692132]
[1759210868750,1.91631583,210.23,210.22,22.9]
[1759210868952,2.62631583,210.23,210.22,22.9]
[1759210870833,1.91631583,210.23,210.22,22.9]
[1759210871446,1.91631583,210.23,210.18,4.75603011]
[1759210871447,2.62631583,210.23,210.18,4.75603011]
[1759210871652,1.91631583,210.19,210.15,4.75829149]
[1759210871949,1.91631583,210.18,210.15,0.71]
[1759210872328,1.91631583,210.18,210.14,33.26]
[1759210872524,1.91631583,210.18,210.15,5.4684977]
[1759210872844,1.91631583,210.19,210.16,0.71]
[1759210873238,1.91631583,210.18,210.16,0.71]
[1759210873434,5.4669203,210.23,210.16,0.71]
[1759210873635,1.91631583,210.2,210.16,0.71]
[1759210874144,1.91631583,210.21,210.16,0.71]
[1759210874351,1.91631583,210.23,210.17,49.91318551]
[1759210874534,1.91631583,210.23,210.18,0.71]
[1759210875352,1.91631583,210.23,210.19,4.75760026]
[1759210875538,1.91631583,210.21,210.17,11.88990084]
[1759210875736,1.91631583,210.2,210.16,5.42825906]
[1759210876054,1.91631583,210.19,210.17,0.67]
[1759210876255,1.91631583,210.2,210.17,0.67]
[1759210876846,0.71,210.26,210.18,0.67]
[1759210877047,1.91631583,210.22,210.18,0.67]
[1759210877356,1.91631583,210.22,210.18,23.57]
[1759210877551,1.91631583,210.22,210.19,0.67]
[1759210878549,1.91631583,210.2,210.19,0.67]
[1759210878730,1.91631583,210.2,210.19,5.42760026]
[1759210879134,1.91631583,210.22,210.19,5.42760026]
[1759210879337,1.91631583,210.22,210.2,0.67]
[1759210879540,1.91631583,210.22,210.21,0.67]
[1759210880341,1.91631583,210.28,210.21,5.42714761]
[1759210880548,1.91631583,210.28,210.22,0.67]
[1759210881030,0.71,210.29,210.22,0.67]
[1759210881031,1.91631583,210.27,210.22,0.67]
[1759210881443,1.91631583,210.27,210.23,4.75669504]
[1759210881630,1.91631583,210.27,210.24,0.69]
[1759210882056,1.91631583,210.26,210.24,0.69]
[1759210883557,1.91631583,210.26,210.24,5.4464032]
[1759210885661,1.91631583,210.25,210.24,5.4464032]
[1759210886258,1.91631583,210.25,210.24,28.3464032]
[1759210886571,0.7,210.35,210.25,13.59559401]
[1759210886862,1.91631583,210.3,210.26,0.69]
[1759210887158,1.91631583,210.3,210.27,33.24]
[1759210887347,1.91631583,210.3,210.28,0.69]
[1759210887662,1.91631583,210.31,210.29,4.75533786]
[1759210887859,1.91631583,210.32,210.3,0.69]
[1759210888063,1.91631583,210.32,210.31,0.69]
[1759210889186,1.91631583,210.32,210.29,9.50898793]
[1759210889481,4.75400598,210.35,210.3,0.69]
[1759210889781,5.45400598,210.35,210.3,0.69]
[1759210890684,1.91631583,210.31,210.3,5.44511174]
[1759210891689,1.91631583,210.31,210.27,45.12925391]
[1759210891690,1.91631583,210.31,210.29,4.75374529]
[1759210891869,2.61631583,210.3,210.25,56.14]
[1759210892070,1.91631583,210.26,210.25,0.69]
[1759210892899,1.91631583,210.26,210.25,5.44624256]
[1759210894288,1.91631583,210.26,210.25,0.69]
[1759210894590,1.91631583,210.26,210.24,33.24]
[1759210894793,1.91631583,210.25,210.24,33.93]
[1759210895685,0.7,210.33,210.24,38.68646879]
[1759210895891,1.91631583,210.28,210.25,0.69]
[1759210896190,1.91631583,210.28,210.26,4.75601636]
[1759210896388,1.91631583,210.28,210.27,0.69]
[1759210897380,1.91631583,210.28,210.27,5.44579017]
[1759210897962,0.7,210.33,210.27,5.44579017]
[1759210898184,1.91631583,210.29,210.27,28.34579017]
[1759210898385,1.91631583,210.28,210.27,28.34579017]
[1759210899265,0.7,210.36,210.27,33.93]
[1759210899468,1.91631583,210.31,210.28,0.69]
[1759210899669,1.91631583,210.3,210.28,0.69]
[1759210899874,16.6365624,210.38,210.27,70.44240042]
[1759210900075,0.7,210.37,210.28,0.69]
[1759210900399,1.91631583,210.29,210.28,0.69]
[1759210900982,1.91631583,210.3,210.28,0.69]
[1759210901183,1.91631583,210.29,210.27,37.20240042]
[1759210901374,1.91631583,210.28,210.27,33.24]
[1759210902278,1.91631583,210.28,210.23,23.59]
[1759210902459,1.91631583,210.25,210.24,33.24]
[1759210902865,1.91631583,210.25,210.23,33.24]
[1759210903071,1.91631583,210.24,210.23,33.24]
[1759210903374,1.91631583,210.27,210.23,33.93]
[1759210903572,1.91631583,210.28,210.24,0.69]
[1759210904689,1.91631583,210.28,210.25,4.75624256]
[1759210904894,1.91631583,210.29,210.26,0.69]
[1759210905192,1.91631583,210.31,210.26,33.95]
[1759210905493,1.91631583,210.3,210.27,0.69]
[1759210905690,5.45420778,210.34,210.28,0.69]
[1759210905896,1.91631583,210.29,210.28,0.69]
[1759210906590,5.45352949,210.37,210.28,5.445564]
[1759210906789,1.91631583,210.31,210.29,33.95]
[1759210907912,1.91631583,210.31,210.3,4.75511174]
[1759210908091,1.91631583,210.31,210.3,5.44511174]
[1759210909980,1.91631583,210.32,210.3,28.34511174]
[1759210911398,1.91631583,210.31,210.3,28.34511174]
[1759210912897,5.45376107,210.36,210.3,28.34511174]
[1759210913096,1.91631583,210.31,210.3,5.44511174]
[1759210916904,1.91631583,210.31,210.3,0.69]
[1759210918080,1.91631583,210.31,210.3,5.44511174]
[1759210918796,1.91631583,210.31,210.29,60.91531547]
[1759210918996,1.91631583,210.3,210.27,22.9]
[1759210919197,1.91631583,210.28,210.27,22.9]
[1759210919396,1.91631583,210.28,210.27,28.36574202]
[1759210919799,1.91631583,210.29,210.27,28.36574202]
[1759210920104,4.75440807,210.34,210.28,33.95]
[1759210920298,1.91631583,210.29,210.28,33.95]
[1759210921011,1.91631583,210.3,210.29,4.75533786]
[1759210921318,0.66,210.38,210.29,28.36533786]
[1759210921608,1.91631583,210.33,210.3,33.95]
[1759210921909,1.91631583,210.34,210.31,0.71]
[1759210922211,1.91631583,210.34,210.32,33.24]
[1759210922508,1.91631583,210.34,210.33,4.7544335]
[1759210924187,2.98911161,210.34,210.33,4.7544335]
[1759210925016,2.98911161,210.34,210.32,33.95]
[1759210925311,2.98911161,210.33,210.32,38.70465956]
[1759210925496,2.98911161,210.33,210.32,61.60465956]
[1759210925698,2.98911161,210.33,210.32,60.89465956]
[1759210925997,2.98911161,210.33,210.32,22.9]
[1759210926201,3.64911161,210.33,210.32,22.9]
[1759210930396,2.98911161,210.33,210.32,22.9]
[1759210930601,2.98911161,210.33,210.32,23.61]
[1759210930816,2.98911161,210.33,210.3,5.46489202]
[1759210931017,2.98911161,210.31,210.3,4.75489202]
[1759210931724,2.98911161,210.31,210.3,5.46489202]
[1759210934024,2.98911161,210.31,210.3,0.71]
[1759210934236,2.98911161,210.31,210.29,33.22]
[1759210934423,2.98911161,210.3,210.29,38.68526902]
[1759210936539,5.40399672,210.35,210.29,38.68526902]
[1759210936841,2.98911161,210.3,210.29,61.58526902]
[1759210939715,5.40399672,210.35,210.29,61.58526902]
[1759210939940,2.98911161,210.3,210.29,56.83]
[1759210940140,2.98911161,210.3,210.29,56.12]
[1759210940438,2.98911161,210.3,210.29,56.78]
[1759210942446,2.98911161,210.3,210.29,61.53533786]
[1759210943033,4.75330354,210.38,210.29,61.53533786]
[1759210943229,2.98911161,210.33,210.3,0.68]
[1759210943538,2.98911161,210.33,210.31,33.22]
[1759210943757,2.98911161,210.33,210.32,0.68]
[1759210944323,2.98911161,210.33,210.32,5.43465956]
[1759210948628,2.98911161,210.33,210.32,28.33465956]
[1759210949142,2.98911161,210.33,210.32,23.58]
[1759210949840,2.98911161,210.34,210.32,28.33465956]
[1759210950040,2.98911161,210.34,210.33,33.9]
[1759210950752,2.98911161,210.34,210.33,38.6544335]
[1759210951257,2.98911161,210.36,210.33,38.6544335]
[1759210951427,2.98911161,210.36,210.34,0.68]
[1759210951632,0.2,210.39,210.35,33.9]
[1759210951954,2.98911161,210.36,210.35,33.9]
[1759210952547,2.98911161,210.36,210.35,33.22]
[1759210955463,0.87,210.39,210.35,33.22]
[1759210955639,2.98911161,210.36,210.35,33.9]
[1759210955952,6.64822322,210.36,210.26,0.68]
[1759210956157,2.98911161,210.27,210.25,33.22]
[1759210956335,0.67,210.31,210.26,33.24]
[1759210956535,0.67,210.3,210.26,33.24]
[1759210956956,0.67,210.29,210.19,5.97457409]
[1759210957155,0.67,210.28,210.13,11.89712136]
[1759210957359,16.64605726,210.26,210.17,0.68]
[1759210957641,2.98911161,210.18,210.17,0.68]
[1759210957953,2.98911161,210.18,210.17,33.96]
[1759210958863,2.98911161,210.18,210.17,33.28]
[1759210959162,3.65911161,210.21,210.17,33.28]
[1759210959364,2.98911161,210.18,210.17,33.28]
[1759210960243,2.98911161,210.18,210.17,0.68]
[1759210962046,2.98911161,210.18,210.15,33.28]
[1759210962346,2.98911161,210.16,210.15,33.28]
[1759210962761,2.98911161,210.16,210.15,33.96]
[1759210963574,2.98911161,210.16,210.12,0.68]
[1759210963575,7.74742427,210.16,210.12,0.68]
[1759210963750,2.98911161,210.13,210.11,33.28]
[1759210964068,2.98911161,210.12,210.11,33.28]
[1759210964480,2.98911161,210.12,210.09,0.68]
[1759210964666,2.98911161,210.1,210.09,33.28]
[1759210965667,2.98911161,210.1,210.08,33.3]
[1759210965870,2.98911161,210.09,210.08,33.98]
[1759210966383,2.98911161,210.09,210.08,33.3]
[1759210966773,2.98911161,210.09,210.08,33.98]
[1759210969481,2.98911161,210.09,210.08,38.74009139]
[1759210971881,2.98911161,210.1,210.08,38.74009139]
[1759210972084,2.98911161,210.1,210.09,0.7]
[1759210972383,2.98911161,210.1,210.08,38.06009139]
[1759210972581,2.98911161,210.09,210.08,38.76009139]
[1759210975080,2.98911161,210.1,210.08,38.76009139]
[1759210975277,5.47846004,210.16,210.09,0.7]
[1759210975590,2.98911161,210.11,210.1,33.26]
[1759210976168,2.98911161,210.12,210.1,33.26]
[1759210976801,2.98911161,210.12,210.11,0.7]
[1759210976963,2.98911161,210.12,210.1,38.01955606]
[1759210977275,2.98911161,210.12,210.1,33.26]
[1759210978271,0.72,210.15,210.1,33.26]
[1759210978474,2.98911161,210.12,210.1,33.96]
[1759210978985,2.98911161,210.12,210.1,38.71959726]
[1759210980486,2.98911161,210.12,210.1,33.96]
[1759210980897,2.98911161,210.12,210.1,38.71963398]
[1759210981298,5.47852189,210.15,210.1,56.86]
[1759210981494,2.98911161,210.12,210.1,56.86]
[1759210982200,2.98911161,210.12,210.1,56.16]
[1759210982409,3.70911161,210.11,210.1,22.9]
[1759210982696,2.98911161,210.11,210.1,22.9]
[1759210984296,1.91755338,210.11,210.1,22.9]
[1759210984505,6.67696511,210.11,210.1,22.9]
[1759210984683,7.39696511,210.11,210.1,22.9]
[1759210986311,7.39696511,210.11,210.03,5.46121649]
[1759210986510,1.91755338,210.06,210.04,33.26]
[1759210986813,5.47968759,210.1,210.05,0.7]
[1759210986988,1.91755338,210.07,210.04,38.02094151]
[1759210987702,1.91755338,210.08,210.05,0.7]
[1759210988294,1.91755338,210.08,210.04,38.02094151]
[1759210988496,1.91755338,210.08,210.05,5.46056544]
[1759210988699,1.91755338,210.08,210.06,0.7]
[1759210990812,1.91755338,210.08,210.06,5.46045895]
[1759210991006,1.91755338,210.08,210.07,0.7]
[1759210991204,1.91755338,210.08,210.06,4.76045895]
[1759210991524,1.91755338,210.08,210.06,5.46045895]
[1759210991907,0.72,210.14,210.05,4.76077124]
[1759210992213,11.89666168,210.15,210.07,0.7]
[1759210992214,1.91755338,210.08,210.07,0.7]
[1759210993288,1.91755338,210.08,210.05,23.6]
[1759210993488,1.91755338,210.08,210.06,0.7]
[1759210994104,1.91755338,210.07,210.06,0.7]
[1759210996027,1.91755338,210.07,210.06,5.4605446]
[1759210996414,1.91755338,210.08,210.06,5.4605446]
[1759210996615,1.91755338,210.08,210.07,0.69]
[1759210996921,5.43897983,210.13,210.07,0.69]
[1759210997114,1.91755338,210.1,210.07,23.59]
[1759210997311,1.91755338,210.1,210.08,0.69]
[1759210997515,1.91755338,210.1,210.08,4.76009139]
[1759210997824,1.91755338,210.11,210.09,0.69]
[1759210998500,1.91755338,210.12,210.09,0.69]
[1759210999617,1.91755338,210.13,210.1,4.75963826]
[1759210999809,1.91755338,210.13,210.11,0.69]
[1759211000009,1.91755338,210.13,210.12,0.69]
[1759211000210,1.91755338,210.14,210.12,0.69]
[1759211000526,1.91755338,210.15,210.13,0.69]
[1759211000920,1.91755338,210.15,210.14,0.69]
[1759211001328,1.91755338,210.17,210.14,0.69]
[1759211001623,1.91755338,210.17,210.15,4.75850582]
[1759211001840,1.91755338,210.17,210.16,0.72]
[1759211002529,1.91755338,210.17,210.15,4.75850582]
[1759211002834,1.91755338,210.17,210.15,5.47850582]
[1759211003725,1.91755338,210.18,210.15,5.47850582]
[1759211005133,5.47741065,210.2,210.15,5.47850141]
[1759211005342,0.72,210.2,210.15,5.47850141]
[1759211005565,1.91755338,210.17,210.15,5.47850141]
[1759211007146,1.91755338,210.17,210.15,0.72]
[1759211007843,1.91755338,210.17,210.15,5.47850335]
[1759211008146,2.63755338,210.16,210.13,22.9]
[1759211008341,1.91755338,210.14,210.11,4.75937834]
[1759211008642,1.91755338,210.13,210.11,5.47937834]
[1759211008837,1.91755338,210.13,210.12,0.72]
[1759211009025,1.91755338,210.14,210.12,0.72]
[1759211009352,1.91755338,210.15,210.13,0.72]
[1759211009732,1.91755338,210.15,210.11,4.75937834]
[1759211009927,0.72,210.21,210.14,0.72]
[1759211010238,1.91755338,210.19,210.14,0.72]
[1759211011132,1.91755338,210.19,210.15,4.75850582]
[1759211011446,1.91755338,210.19,210.16,0.72]
[1759211012032,1.91755338,210.19,210.15,4.75850582]
[1759211012354,1.91755338,210.19,210.17,0.72]
[1759211012654,1.91755338,210.19,210.18,0.72]
[1759211013853,1.91755338,210.19,210.17,4.7579425]
[1759211014058,1.91755338,210.19,210.17,0.72]
[1759211014362,1.91755338,210.18,210.15,0.72]
[1759211014541,1.91755338,210.16,210.13,22.9]
[1759211014732,1.91755338,210.15,210.12,38.73895989]
[1759211014932,1.91755338,210.15,210.12,38.01895989]
[1759211015235,1.91755338,210.15,210.13,0.72]
[1759211017957,1.91755338,210.14,210.1,5.47941308]
[1759211018156,1.91755338,210.14,210.12,33.28]
[1759211019157,1.91755338,210.13,210.11,22.9]
[1759211019460,1.91755338,210.12,210.09,38.7598512]
[1759211020442,1.91755338,210.11,210.09,33.28]
[1759211020754,1.91755338,210.12,210.09,38.03985825]
[1759211020957,1.91755338,210.12,210.09,38.75985825]
[1759211022052,1.91755338,210.1,210.06,0.72]
[1759211022237,1.91755338,210.08,210.06,0.72]
[1759211022442,1.91755338,210.08,210.04,5.48099464]
[1759211022740,1.91755338,210.08,210.05,0.72]
[1759211024684,1.91755338,210.07,210.05,0.72]
[1759211025256,1.91755338,210.07,210.05,5.48074488]
[1759211025578,1.91755338,210.06,210.05,4.76074488]
[1759211025775,1.91755338,210.06,210.05,5.48074488]
[1759211026382,1.91755338,210.06,210.05,0.72]
[1759211026683,1.91755338,210.06,210.05,5.48077124]
[1759211027882,1.91755338,210.07,210.05,5.48077124]
[1759211029894,1.91755338,210.07,210.04,4.76097952]
[1759211030066,1.91755338,210.07,210.04,5.48097952]
[1759211030882,1.91755338,210.06,210.04,5.48097952]
[1759211031480,1.91755338,210.06,210.05,0.71]
[1759211031988,1.91755338,210.06,210.05,22.9]
[1759211032186,1.91755338,210.06,210.03,60.9410721]
[1759211032366,1.91755338,210.04,210.03,60.9410721]
[1759211032690,1.91755338,210.04,210.03,38.0410721]
[1759211033385,1.91755338,210.06,210.03,38.7510721]
[1759211033690,1.91755338,210.06,210.04,0.71]
[1759211035286,1.91755338,210.06,210.04,5.47099683]
[1759211036388,1.91755338,210.06,210.05,0.71]
[1759211036690,1.91755338,210.06,210.04,4.76099683]
[1759211036898,1.91755338,210.06,210.04,5.47099683]
[1759211037200,1.91755338,210.06,210.04,0.71]
[1759211037790,1.91755338,210.06,210.04,22.9]
[1759211038387,2.61755338,210.06,210.04,22.9]
[1759211038689,1.91755338,210.05,210.03,56.18]
[1759211038887,1.91755338,210.04,210.03,56.89]
[1759211039485,1.91755338,210.05,210.03,56.89]
[1759211039785,1.91755338,210.05,210.03,61.6512171]
[1759211040283,1.91755338,210.06,210.03,61.6512171]
[1759211040608,0.7,210.08,210.04,0.71]
[1759211040780,1.91755338,210.06,210.04,0.71]
[1759211041999,1.91755338,210.06,210.03,60.9412171]
[1759211042303,1.91755338,210.05,210.03,56.18]
[1759211043113,1.91755338,210.05,210.03,56.89]
[1759211044802,1.91755338,210.05,210.03,60.94119684]
[1759211045004,1.91755338,210.06,210.04,0.71]
[1759211045183,1.91755338,210.07,210.04,0.71]
[1759211045693,1.91755338,210.07,210.03,60.94119684]
[1759211045901,1.91755338,210.07,210.05,0.71]
[1759211046199,2.99668535,210.07,210.05,0.71]
[1759211046409,2.99668535,210.07,210.06,0.71]
[1759211046812,2.99668535,210.07,210.03,60.94119684]
[1759211047021,2.99668535,210.07,210.04,0.71]
[1759211047307,2.99668535,210.07,210.05,0.71]
[1759211048089,2.99668535,210.07,210.04,4.76094536]
[1759211048290,2.99668535,210.07,210.05,0.71]
[1759211048789,2.99668535,210.06,210.05,0.71]
[1759211050107,2.99668535,210.06,210.03,56.89]
[1759211050407,2.99668535,210.05,210.03,56.18]
[1759211050616,2.99668535,210.05,210.03,56.89]
[1759211051002,2.99668535,210.06,210.04,0.71]
[1759211052612,2.99668535,210.06,210.04,5.47096482]
[1759211054728,4.75960685,210.11,210.04,4.76096482]
[1759211054928,2.99668535,210.07,210.05,0.71]
[1759211055144,2.99668535,210.07,210.06,0.68]
[1759211055433,2.99668535,210.08,210.06,0.68]
[1759211055807,2.99668535,210.08,210.05,38.04073098]
[1759211056007,2.99668535,210.08,210.05,38.72073098]
[1759211056827,2.99668535,210.07,210.05,38.72073098]
[1759211057414,0.67,210.09,210.05,33.28]
[1759211057732,2.99668535,210.06,210.05,33.28]
[1759211058434,4.75964979,210.1,210.05,33.28]
[1759211058632,2.99668535,210.06,210.05,33.96]
[1759211062327,2.99668535,210.06,210.04,22.9]
[1759211062534,2.99668535,210.06,210.04,56.87]
[1759211063019,2.99668535,210.06,210.04,56.16]
[1759211063227,2.99668535,210.06,210.05,0.71]
[1759211064133,2.99668535,210.06,210.02,0.1]
[1759211064134,8.45725778,210.06,210.02,0.1]
[1759211064331,2.99668535,210.03,210.02,0.1]
[1759211064839,6.87893258,210.03,210.02,0.1]
[1759211065224,11.64015716,210.03,210.02,0.1]
[1759211066123,8.45790993,210.03,210.02,0.1]
[1759211066337,11.64015716,210.03,210.02,0.1]
[1759211067425,8.45790993,210.03,210.02,0.1]
[1759211067620,7.75790993,210.03,210.02,0.1]
[1759211068041,2.99668535,210.03,210.02,0.1]
[1759211069126,7.75790993,210.03,210.02,0.1]
[1759211071229,8.45790993,210.03,210.02,0.1]
[1759211071544,7.75790993,210.03,210.02,0.1]
[1759211073037,8.45790993,210.03,210.02,0.1]
[1759211073744,7.75790993,210.03,210.02,0.1]
[1759211075838,8.45790993,210.03,210.02,0.1]
[1759211077555,7.75790993,210.03,210.02,0.1]
[1759211083961,7.75790993,210.03,210.02,0.81]
[1759211085050,7.75790993,210.03,210.02,0.1]
[1759211088069,7.75790993,210.03,210.02,0.81]
[1759211088748,7.75790993,210.03,210.02,0.1]
[1759211091074,4.76122458,210.03,210.02,0.1]
[1759211091274,2.99668535,210.03,210.02,0.81]
[1759211092356,7.71213069,210.1,210.02,0.81]
[1759211092664,2.99668535,210.03,210.02,0.81]
[1759211092852,2.99668535,210.03,210.02,0.1]
[1759211093248,3.71668535,210.03,210.02,0.1]
[1759211094167,8.47790993,210.03,210.02,0.1]
[1759211096852,7.75790993,210.03,210.02,0.1]
[1759211098762,7.75790993,210.03,210.02,0.79]
[1759211100677,7.75790993,210.03,210.02,0.1]
[1759211101175,4.76122458,210.03,210.02,0.1]
[1759211101378,7.75790993,210.03,210.02,0.1]
[1759211102360,8.47790993,210.03,210.02,0.1]
[1759211103278,11.65890215,210.03,210.02,0.1]
[1759211106300,10.40743354,210.03,210.02,0.1]
[1759211108002,42.96743354,210.03,210.02,0.1]
[1759211112994,43.68743354,210.03,210.02,0.1]
[1759211114070,42.96743354,210.03,210.02,0.1]
[1759211114717,42.97941706,210.03,210.02,0.1]
[1759211115620,57.24501107,210.03,210.02,0.1]